fUST/lending_fUST_20251124
["ID","MTS","AMOUNT","RATE_DAILY","PERIOD"]
[394777203,1763937479745,279.44,0.00010961,2]
[394777204,1763937480025,279.43,0.00010961,2]
[394777205,1763937538254,3370.0,0.0002,30]
[394777206,1763937949127,-150.0,0.00013426,2]
[394777207,1763937949148,-150.0,0.00013494,2]
[394777208,1763937949168,-10.01947502,0.00013562,2]
[394777209,1763938032073,-1179.64136948,0.00013562,2]
[394777210,1763938032097,-500.0,0.00013699,2]
[394777211,1763938032118,-163.99786798,0.00014284,2]
[394777212,1763938032137,-255.708,0.00014384,2]
[394777213,1763938032158,-31.60838136,0.00014682,2]
[394777214,1763938033083,-1287.29615108,0.00014682,2]
[394777215,1763938035083,-4391.51838326,0.00014682,2]
[394777216,1763938035104,-574.26898289,0.00014849,2]
[394777217,1763938041107,-279.2538,0.00013699,2]
[394777218,1763938041126,-763.21044312,0.00014849,2]
[394777323,1763938240316,-1075.281974,0.00013699,2]
[394777325,1763938240326,-161.9646,0.00013699,2]
[394777327,1763938240335,-578.1,0.00014,2]
[394777329,1763938240346,-150.0,0.00014274,2]
[394777331,1763938240355,-2446.71419509,0.00014849,2]
[394777333,1763938240364,-205.8380338,0.00015068,2]
[394777335,1763938240374,-163.99786796,0.00016031,2]
[394777337,1763938240383,-177.0,0.00016274,2]
[394777339,1763938240392,-6130.0,0.000163,2]
[394777341,1763938240402,-185.49421885,0.00016319,2]
[394777343,1763938240412,-359.77525939,0.00016319,2]
[394777345,1763938240421,-500.0,0.00016319,2]
[394777347,1763938240430,-391.53298272,0.00016319,2]
[394777349,1763938240440,-21629.76497174,0.0001632,2]
[394777351,1763938240455,-267.762,0.00016419,2]
[394777353,1763938240464,-198.86413485,0.00016419,2]
[394777355,1763938240474,-500.0,0.00016419,2]
[394777379,1763938240677,-500.0,0.00016419,2]
[394777381,1763938240687,-247.05264698,0.00016419,2]
[394777383,1763938240696,-356.30680741,0.00016419,2]
[394777385,1763938240705,-500.0,0.00016419,2]
[394777387,1763938240714,-500.0,0.00016419,2]
[394777388,1763938240723,-500.0,0.00016419,2]
[394777391,1763938240732,-57115.1284685,0.0001642,2]
[394777392,1763938240743,-98808.88286206,0.0001699,2]
[394777395,1763938240752,-353.29325365,0.00017397,2]
[394777396,1763938240761,-150.0,0.00017484,2]
[394777399,1763938240771,-500.0,0.00017773,2]
[394777401,1763938240781,-500.0,0.00017773,2]
[394777403,1763938240790,-500.0,0.00017773,2]
[394777405,1763938240799,-500.0,0.00017773,2]
[394777407,1763938240808,-500.0,0.00017773,2]
[394777409,1763938240818,-181.08010149,0.00017776,2]
[394777411,1763938240827,-163.99786796,0.00017778,2]
[394777413,1763938240836,-20099.82,0.00017787,2]
[394777415,1763938240845,-20099.82,0.00017787,2]
[394777417,1763938240854,-20099.82,0.00017787,2]
[394777418,1763938240863,-20099.82,0.00017787,2]
[394777421,1763938240872,-20099.82,0.00017787,2]
[394777423,1763938240881,-20099.82,0.00017787,2]
[394777425,1763938240891,-20099.82,0.00017787,2]
[394777426,1763938240900,-20099.82,0.00017787,2]
[394777429,1763938240909,-20099.82,0.00017787,2]
[394777431,1763938240919,-20099.82,0.00017787,2]
[394777433,1763938240927,-20099.82,0.00017787,2]
[394777435,1763938240936,-20099.82,0.00017787,2]
[394777437,1763938240946,-20099.82,0.00017787,2]
[394777438,1763938240955,-20099.82,0.00017787,2]
[394777441,1763938240964,-20099.82,0.00017787,2]
[394777443,1763938240973,-20099.82,0.00017787,2]
[394777445,1763938240982,-20099.82,0.00017787,2]
[394777447,1763938240991,-20099.82,0.00017787,2]
[394777449,1763938241000,-20099.82,0.00017787,2]
[394777451,1763938241009,-20099.82,0.00017787,2]
[394777453,1763938241018,-20099.82,0.00017787,2]
[394777455,1763938241027,-20099.82,0.00017787,2]
[394777457,1763938241036,-20099.82,0.00017787,2]
[394777458,1763938241046,-20099.99920752,0.00017787,2]
[394777461,1763938241056,-151.0,0.00017788,2]
[394777463,1763938241065,-151.0,0.00017788,2]
[394777465,1763938241075,-151.0,0.00017788,2]
[394777466,1763938241084,-204.248875,0.00017788,2]
[394777468,1763938241095,-292.415372,0.00017788,2]
[394777471,1763938241104,-151.0,0.00017788,2]
[394777472,1763938241113,-341.1139968,0.00017988,2]
[394777475,1763938241122,-250.0,0.000181,2]
[394777477,1763938241131,-300.0,0.00018143,2]
[394777479,1763938241141,-300.0,0.00018143,2]
[394777481,1763938241150,-300.0,0.00018143,2]
[394777482,1763938241159,-204.0,0.00018274,2]
[394777485,1763938241168,-515.2287209,0.00018321,2]
[394777486,1763938241177,-1000.0,0.00018321,2]
[394777489,1763938241186,-1000.0,0.00018321,2]
[394777491,1763938241195,-1000.0,0.00018321,2]
[394777492,1763938241204,-1114.9217838,0.00018321,2]
[394777495,1763938241214,-1956.08,0.00018773,2]
[394777497,1763938241223,-151.0,0.000188,2]
[394777499,1763938241232,-1500.0,0.00018868,2]
[394777501,1763938241241,-724.68225239,0.00018868,2]
[394777503,1763938241250,-1500.0,0.00018868,2]
[394777505,1763938241259,-162.2269615,0.00019034,2]
[394777507,1763938241268,-150.0,0.00019074,2]
[394777509,1763938241277,-2000.0,0.00019416,2]
[394777511,1763938241286,-2000.0,0.00019416,2]
[394777513,1763938241294,-2500.0,0.00019964,2]
[394777515,1763938241303,-2500.0,0.00019964,2]
[394777517,1763938241315,-2000.0,0.0002,7]
[394777519,1763938241326,-1075.281974,0.00020187,2]
[394777521,1763938241336,-231.0,0.00020274,2]
[394777523,1763938241346,-3000.0,0.00020512,2]
[394777525,1763938241355,-3000.0,0.00020512,2]
[394777527,1763938241363,-150.0,0.00020663,2]
[394777529,1763938241373,-3504.43111579,0.0002106,2]
[394777531,1763938241383,-3500.0,0.0002106,2]
[394777533,1763938241392,-169.41148258,0.00021309,2]
[394777534,1763938241401,-1670.95156133,0.00021608,2]
[394777537,1763938241410,-496.47127164,0.0002176,2]
[394777538,1763938241420,-2007.80848382,0.0002176,2]
[394777540,1763938241430,-250.0,0.0002176,2]
[394777542,1763938241440,-250.0,0.0002176,2]
[394777544,1763938241453,-151.0,0.0002176,2]
[394777546,1763938241461,-250.0,0.0002176,2]
[394777548,1763938241470,-250.0,0.0002176,2]
[394777550,1763938241479,-151.08012366,0.0002176,2]
[394777552,1763938241489,-1936.31111547,0.0002176,2]
[394777554,1763938241498,-181.08010149,0.0002176,2]
[394777556,1763938241507,-300.0,0.00021973,2]
[394777558,1763938241516,-500.0,0.00021973,2]
[394777560,1763938241527,-199.60726348,0.00021973,2]
[394777562,1763938241536,-219.47020854,0.00021973,2]
[394777564,1763938241546,-501.34286782,0.00021973,2]
[394777566,1763938241555,-501.85316761,0.00021973,2]
[394777568,1763938241564,-500.0,0.00021973,2]
[394777570,1763938241573,-500.0,0.00021973,2]
[394777572,1763938241582,-500.0,0.00021973,2]
[394777574,1763938241592,-522.82743869,0.00021973,2]
[394777576,1763938241601,-500.0,0.00021973,2]
[394777578,1763938241611,-500.0,0.00021973,2]
[394777581,1763938241620,-210755.35,0.00022,2]
[394777583,1763938241629,-172.97,0.00022,14]
[394777585,1763938241639,-1240.86,0.00022,7]
[394777587,1763938241648,-250.0,0.00022,10]
[394777589,1763938241657,-250.0,0.000221,10]
[394777591,1763938241666,-250.0,0.000222,10]
[394777593,1763938241675,-171.54,0.00022235,2]
[394777595,1763938241684,-258.0,0.00022274,2]
[394777597,1763938241693,-250.0,0.000223,10]
[394777599,1763938241702,-250.0,0.000224,10]
[394777601,1763938241711,-350.0,0.000225,10]
[394777603,1763938241720,-1000.0,0.00022521,2]
[394777605,1763938241729,-1000.0,0.00022521,2]
[394777606,1763938241738,-1000.0,0.00022521,2]
[394777609,1763938241747,-500.0110621,0.00022521,2]
[394777610,1763938241756,-151.0,0.00022604,7]
[394777613,1763938241767,-151.0,0.00022604,7]
[394777614,1763938241776,-151.0,0.00022604,7]
[394777616,1763938241786,-211.69895,0.00022604,7]
[394777618,1763938241795,-211.69895,0.00022604,7]
[394777620,1763938241804,-211.69895,0.00022604,7]
[394777623,1763938241814,-211.69895,0.00022604,7]
[394777625,1763938241823,-4575.99468632,0.00022604,2]
[394777627,1763938241833,-600.0,0.00022795,2]
[394777629,1763938241846,-1500.0,0.00023068,2]
[394777631,1763938241859,-434.76595392,0.00023068,2]
[394777633,1763938241867,-1500.0,0.00023068,2]
[394777635,1763938241879,-747.747412,0.000231,5]
[394777637,1763938241888,-1200.0,0.00023356,2]
[394777639,1763938241897,-900.0,0.00023616,2]
[394777641,1763938241907,-2000.0,0.00023616,2]
[394777643,1763938241917,-151.0,0.00023804,7]
[394777645,1763938241926,-151.0,0.00023804,7]
[394777647,1763938241935,-214.42,0.00023823,2]
[394777649,1763938241944,-396.2986014,0.00023899,2]
[394777651,1763938241953,-395.7097827,0.00024041,2]
[394777653,1763938241962,-310.0,0.00024055,12]
[394777655,1763938241971,-2500.0,0.00024164,2]
[394777657,1763938241980,-150.0,0.00024273,2]
[394777659,1763938241989,-285.0,0.00024274,2]
[394777661,1763938241998,-44414.48241813,0.000243,2]
[394778153,1763938246473,-358.49902386,0.000243,2]
[394778155,1763938246484,-3893.30000016,0.000243,2]
[394778344,1763938248207,167.83320011,0.00010061,2]
[394778656,1763938495595,168.41498827,0.00010061,2]
[394778661,1763939153146,-183.91122947,0.00015538,2]
[394778662,1763939153174,-12.61082455,0.00015617,2]
[394778663,1763939228082,-409.27942017,0.0001546,2]
[394778664,1763939228106,-137.38917545,0.00015617,2]
[394778665,1763939228128,-347.00412965,0.00015695,2]
[394778666,1763939228155,-604.31840513,0.00015695,2]
[394778667,1763939233123,-0.02978392,0.00015695,2]
[394778668,1763939233145,-568.14888412,0.0001599,2]
[394778669,1763939253087,-2982.5102102,0.0001599,2]
[394778670,1763939253109,-214.21,0.00015994,2]
[394778671,1763939253129,-2583.46749677,0.00016273,2]
[394778672,1763939396020,186.74369058,0.00010061,2]
[394778705,1763939432445,-335.2650128,0.00010973,2]
[394778707,1763939432454,-150.0,0.00012404,2]
[394778709,1763939432464,-335.2650128,0.00013836,2]
[394778711,1763939432473,-177.0,0.00014404,2]
[394778713,1763939432482,-250.0,0.00014499,2]
[394778715,1763939432491,-300.0,0.00016318,2]
[394778717,1763939432501,-341.33030142,0.00016319,2]
[394778719,1763939432510,-534.44770672,0.000164,2]
[394778721,1763939432519,-500.0,0.000164,2]
[394778723,1763939432528,-204.0,0.00016404,2]
[394778725,1763939432537,-243.9879476,0.00016606,2]
[394778727,1763939432546,-335.2650128,0.00016699,2]
[394778728,1763939432554,-1000.0,0.00016948,2]
[394778729,1763939432563,-1500.0,0.00017496,2]
[394778730,1763939432573,-150.0,0.00017535,2]
[394778731,1763939432582,-353.29325365,0.00017928,2]
[394778732,1763939432592,-888.80478194,0.00018044,2]
[394778752,1763939438331,-758.41553054,0.00018044,2]
[394778753,1763939438341,-231.0,0.00018404,2]
[394778754,1763939438351,-377.86649229,0.00018679,2]
[394778755,1763939438361,-150.0,0.00019129,2]
[394778756,1763939438371,-151.0,0.000195,2]
[394778757,1763939438380,-335.2650128,0.00019562,2]
[394778758,1763939438389,-151.0,0.000203,4]
[394778759,1763939438398,-258.0,0.00020404,2]
[394778760,1763939438407,-150.0,0.00020723,2]
[394778761,1763939438417,-151.0,0.000211,4]
[394778762,1763939438428,-186.74369058,0.00021309,2]
[394778763,1763939438439,-151.0,0.000219,3]
[394778764,1763939438449,-172.98,0.00022,14]
[394778765,1763939438459,-150.0,0.00022,10]
[394778766,1763939438470,-179.0,0.00022,2]
[394778767,1763939438480,-150.0,0.00022317,2]
[394778768,1763939438490,-285.0,0.00022404,2]
[394778769,1763939438500,-335.60027781,0.00022425,2]
[394778770,1763939438510,-1958.3287355,0.00022479,2]
[394778771,1763939438519,-151.0,0.000227,5]
[394778772,1763939438529,-171.0,0.00022904,8]
[394778773,1763939438539,-179.0,0.00023014,7]
[394778774,1763939438549,-150.0,0.000231,5]
[394778775,1763939438559,-1100.0,0.00023356,2]
[394778776,1763939438569,-151.0,0.000235,7]
[394778777,1763939438579,-500.0,0.00023887,2]
[394778778,1763939438588,-500.0,0.00023887,2]
[394778779,1763939438601,-500.0,0.00023887,2]
[394778780,1763939438613,-500.0,0.00023887,2]
[394778781,1763939438622,-500.0,0.00023887,2]
[394778782,1763939438632,-244.58371718,0.00023887,2]
[394778783,1763939438642,-203.38579327,0.00023888,2]
[394779324,1763939445171,166.23255715,0.00010061,2]
[394779469,1763939446572,-150.0,0.00017487,2]
[394779470,1763939446586,-150.0,0.00019076,2]
[394779471,1763939446595,-150.0,0.00020666,2]
[394779472,1763939446605,-61.23,0.00022256,2]
[394779473,1763939446616,-88.77,0.00022256,2]
[394779474,1763939446626,-150.0,0.00023845,2]
[394779475,1763939446635,-1962.82197883,0.00023888,2]
[394779476,1763939446644,-180.0,0.00024164,7]
[394779477,1763939446653,-1485.2080214,0.0002429,10]
[394779496,1763940398117,-168.19308826,0.00014609,10]
[394779499,1763940439112,-164.21024412,0.00014463,10]
[394779500,1763940439134,-150.0,0.0001494,2]
[394779501,1763940439153,-800.0,0.00015068,2]
[394779502,1763940439172,-2638.4654312,0.00015852,2]
[394779503,1763940439192,-353.29325365,0.0001609,2]
[394779504,1763940439212,-3681.0619135,0.00016117,2]
[394779505,1763940439238,-159.31406207,0.00016216,2]
[394779506,1763940439261,-500.0,0.00016216,2]
[394779507,1763940439282,-500.0,0.00016216,2]
[394779508,1763940439303,-500.0,0.00016216,2]
[394779509,1763940439328,-500.0,0.00016216,2]
[394779510,1763940439351,-500.0,0.00016216,2]
[394779511,1763940439372,-622.60378062,0.00016216,2]
[394779512,1763940439395,-500.0,0.00016216,2]
[394779513,1763940439417,-500.0,0.00016216,2]
[394779514,1763940439439,-500.0,0.00016216,2]
[394779515,1763940439462,-500.0,0.00016216,2]
[394779516,1763940439487,-570.91762772,0.00016216,2]
[394779517,1763940439509,-1200.0,0.00016216,2]
[394779518,1763940439530,-300.0,0.00016216,2]
[394779519,1763940439551,-3952.91464164,0.00016217,2]
[394779520,1763940491602,352.0,0.0002,30]
[394779523,1763940594998,202.36099704,0.00010061,2]
[394779550,1763940632478,-301.91648269,0.00010973,2]
[394779552,1763940632490,-330.25242726,0.00010973,2]
[394779554,1763940632501,-713.07806639,0.00010973,2]
[394779557,1763940632511,-1345.24697634,0.00012917,2]
[394779558,1763940632520,-353.29325365,0.00013354,2]
[394779561,1763940632530,-250.0,0.00014499,2]
[394779563,1763940632540,-1345.24697634,0.0001486,2]
[394779564,1763940632549,-192.87388097,0.00015681,2]
[394779567,1763940632560,-806.12611903,0.00015681,2]
[394779569,1763940632569,-256.0,0.00016116,2]
[394779571,1763940632578,-1200.0,0.00016116,2]
[394779573,1763940632587,-267108.7658322,0.00016117,2]
[394779576,1763940632598,-2200.10207672,0.00016117,2]
[394779579,1763940632609,-5269.30010608,0.00016117,2]
[394779581,1763940632620,-1671.97144,0.00016117,2]
[394779811,1763940638698,-1582.3070308,0.00016117,2]
[394779814,1763940638709,-10346.90793132,0.00016117,2]
[394779817,1763940638732,-58001.32374429,0.00016117,2]
[394780015,1763940640897,-10507.0,0.00016117,2]
[394780016,1763940640918,-11188.22737744,0.00016117,2]
[394780027,1763940641021,-323.81860578,0.00016117,2]
[394780029,1763940641031,-1807.19034913,0.00016117,2]
[394780031,1763940641042,-22685.69730775,0.00016117,2]
[394780033,1763940641053,-118012.46807248,0.00016117,2]
[394780035,1763940641064,-1470.922002,0.00016117,2]
[394780618,1763940646789,-63653.293883,0.00016117,2]
[394780621,1763940646815,-35509.58443652,0.00016117,2]
[394780624,1763940646825,-594.02335773,0.00016217,2]
[394780625,1763940646834,-304.95374635,0.00016217,2]
[394780628,1763940646843,-218.764,0.00016217,2]
[394780629,1763940646852,-11124.78845127,0.00016219,2]
[394780632,1763940646863,-36717.13969829,0.00016219,2]
[394780634,1763940646872,-500.0,0.00016219,2]
[394780636,1763940646881,-214.50334745,0.00016219,2]
[394780638,1763940646890,-500.0,0.00016219,2]
[394780640,1763940646899,-500.0,0.00016219,2]
[394780642,1763940646908,-372.93685289,0.00016219,2]
[394780644,1763940646917,-422.06922003,0.00016219,2]
[394780646,1763940646927,-1345.24697634,0.00016804,2]
[394780648,1763940646935,-177.0,0.0001694,2]
[394780650,1763940646945,-2720.07237623,0.00017345,2]
[394780652,1763940646954,-150.0,0.00017534,2]
[394780654,1763940646963,-690.0,0.00017706,2]
[394780656,1763940646972,-1428.58,0.000178,3]
[394780658,1763940646981,-1345.24697634,0.00018747,2]
[394780660,1763940646990,-1468.7465516,0.00018868,2]
[394780662,1763940646999,-204.0,0.0001894,2]
[394780664,1763940647008,-150.0,0.00019128,2]
[394780666,1763940647017,-1000.0,0.00019682,2]
[394780668,1763940647028,-414.0,0.00020196,2]
[394780670,1763940647038,-1345.24697634,0.00020691,2]
[394780672,1763940647047,-150.0,0.00020722,2]
[394780674,1763940647056,-231.0,0.0002094,2]
[394780676,1763940647066,-1468.7465516,0.00021019,2]
[394780678,1763940647075,-261.5,0.00021035,15]
[394780679,1763940647084,-2396.21834203,0.00021193,2]
[394780682,1763940647095,-10828.21309477,0.00021193,2]
[394780684,1763940647104,-202.36099704,0.00021309,2]
[394780686,1763940647113,-150.0,0.00022316,2]
[394780688,1763940647121,-1346.59222332,0.00022634,2]
[394780690,1763940647131,-187.0,0.00022932,8]
[394780692,1763940647140,-258.0,0.0002294,2]
[394780694,1763940647149,-1468.7465516,0.0002317,2]
[394780696,1763940647159,-414.0,0.00023196,2]
[394780698,1763940647168,-1000.0,0.00023356,2]
[394780700,1763940647177,-164.2628813,0.00023647,2]
[394780702,1763940647186,-1331.890504,0.00023647,2]
[394780704,1763940647195,-301.3293263,0.00023647,2]
[394780706,1763940647204,-191.8445587,0.00023647,2]
[394780708,1763940647213,-191.8445587,0.00023647,2]
[394780710,1763940647222,-3220.68,0.000239,6]
[394780712,1763940647230,-150.0,0.0002391,2]
[394780714,1763940647239,-1428.57,0.00024,3]
[394780716,1763940647248,-2950.7695043,0.00024084,2]
[394780718,1763940647257,-536.80451312,0.00024273,2]
[394780719,1763940647267,-500.0,0.00024273,2]
[394780721,1763940647276,-500.0,0.00024273,2]
[394780723,1763940647285,-1116.77,0.000243,7]
[394780725,1763940647294,-6840.82182958,0.000243,2]
[394780728,1763940647305,-4151.97647766,0.000243,2]
[394780936,1763940649626,-830.6395,0.000243,2]
[394780937,1763940649637,-494.293216,0.000243,2]
[394780938,1763941532131,-298.66973292,0.00017146,10]
[394780939,1763941625091,-150.0,0.00016975,10]
[394780940,1763941625111,-150.0,0.00017061,2]
[394780941,1763941625130,-890.99111158,0.00017146,10]
[394780942,1763941625151,-150.0,0.00017494,2]
[394780943,1763941625171,-848.0,0.00017494,2]
[394780944,1763941625192,-177.0,0.00019061,2]
[394780945,1763941625212,-150.0,0.00019084,2]
[394780946,1763941625231,-156.50653844,0.0002022,2]
[394780947,1763941625250,-156.50653844,0.0002022,2]
[394780948,1763941625268,-280.19815833,0.00020819,2]
[394780949,1763941625286,-504.356685,0.00020819,2]
[394780950,1763941625304,-896.63410666,0.00020819,2]
[394780951,1763941625323,-1257.0177963,0.00021042,2]
[394780952,1763941625342,-204.0,0.00021061,2]
[394780953,1763941625360,-407.27579024,0.00021126,2]
[394780954,1763941634077,-6.72420976,0.00021126,2]
[394780955,1763941634097,-210.33938778,0.00021309,2]
[394780956,1763941634116,-158.22954823,0.00021483,2]
[394780957,1763941634135,-632.28527474,0.00021483,2]
[394780958,1763941634154,-535.36033159,0.00021915,2]
[394780959,1763941634174,-464.28857736,0.00021915,2]
[394780960,1763941634202,-499.3600195,0.00021915,2]
[394780961,1763941634225,-495.67566611,0.00021915,2]
[394780962,1763941649088,-1217.47739498,0.00021915,2]
[394780963,1763941649115,-1.52098151,0.00021915,2]
[394780982,1763941831881,-255.49749186,0.00020819,2]
[394780983,1763941831892,-929.26250814,0.00020819,2]
[394780984,1763941831903,-975.72973871,0.00020819,2]
[394780999,1763941838279,-514.79093774,0.00020819,2]
[394781001,1763941838288,-1021.0,0.00020819,2]
[394781002,1763941838297,-511.23,0.00021383,2]
[394781005,1763941838307,-554.25540212,0.00021483,2]
[394781006,1763941838316,-2069.99416322,0.00021483,2]
[394781009,1763941838328,-144.81042365,0.00021483,2]
[394781011,1763941838337,-157.18957635,0.00022628,2]
[394781012,1763941838370,-501.21609575,0.00022628,2]
[394781013,1763941838380,-191.8445587,0.00022825,2]
[394781014,1763941838389,-231.0,0.00023061,2]
[394781015,1763941838398,-900.0,0.00023356,2]
[394781016,1763941838408,-593.3484044,0.000234,2]
[394781017,1763941838417,-301.288988,0.00023647,2]
[394781018,1763941838426,-301.288988,0.00023647,2]
[394781019,1763941838435,-191.8445587,0.00023778,2]
[394781020,1763941838444,-3220.92917426,0.00024069,2]
[394781021,1763941838453,-500.0,0.00024079,2]
[394781022,1763941838462,-322.70066541,0.00024079,2]
[394781023,1763941838472,-532.2112468,0.00024079,2]
[394781024,1763941838481,-500.0,0.00024079,2]
[394781025,1763941838490,-500.0,0.00024079,2]
[394781026,1763941838499,-500.0,0.00024079,2]
[394781027,1763941838509,-500.0,0.00024079,2]
[394781028,1763941838518,-500.0,0.00024079,2]
[394781029,1763941838527,-500.0,0.00024079,2]
[394781030,1763941838536,-500.0,0.00024079,2]
[394781031,1763941838546,-500.0,0.00024079,2]
[394781032,1763941838555,-500.0,0.00024079,2]
[394781033,1763941838564,-500.0,0.00024079,2]
[394781034,1763941838574,-500.0,0.00024079,2]
[394781035,1763941838583,-500.0,0.00024079,2]
[394781036,1763941838592,-500.0,0.00024079,2]
[394781037,1763941838601,-500.0,0.00024079,2]
[394781038,1763941838611,-500.0,0.00024079,2]
[394781039,1763941838621,-500.0,0.00024079,2]
[394781040,1763941838631,-500.0,0.00024079,2]
[394781041,1763941838641,-500.0,0.00024079,2]
[394781042,1763941838651,-500.0,0.00024079,2]
[394781043,1763941838660,-262.26037807,0.00024079,2]
[394781044,1763941838670,-153.91845337,0.00024079,2]
[394781045,1763941838682,-346.08154663,0.00024079,2]
[394781046,1763941838692,-500.0,0.00024079,2]
[394781047,1763941838700,-12709.42561064,0.0002408,2]
[394781088,1763941840049,-5572.05116599,0.0002408,2]
[394781090,1763941840058,-938.81288696,0.0002408,2]
[394781092,1763941840067,-938.81288696,0.0002414,2]
[394781094,1763941840076,-175.011,0.0002416,6]
[394781096,1763941840085,-938.81288696,0.000242,2]
[394781098,1763941840094,-11307.69603313,0.0002428,10]
[394781697,1763941846243,-301.288988,0.000231,2]
[394781699,1763941846252,-202.86126036,0.00024289,2]
[394781701,1763941846262,-611.05579702,0.00024289,2]
[394781703,1763941846271,-406.13509131,0.00024289,2]
[394782626,1763942750102,-206.73682191,0.00019106,10]
[394782628,1763942772948,10368.00548445,0.00013699,10]
[394782629,1763942825302,-1671.72340463,0.00013426,2]
[394782630,1763942825322,-419.0467144,0.00013562,2]
[394782631,1763942825341,-1020.937924,0.00013699,2]
[394782632,1763942825360,-500.0,0.00013699,2]
[394782633,1763942825379,-226.5534,0.00014384,2]
[394782634,1763942825400,-704.90654107,0.00019106,10]
[394782635,1763942825420,-150.0,0.00019593,2]
[394782636,1763942825439,-1020.937924,0.00020187,2]
[394782637,1763942825458,-125.91170067,0.00020347,2]
[394782638,1763942836294,-466.88939201,0.00020144,2]
[394782639,1763942836314,-538.13879368,0.00020347,2]
[394782640,1763942836341,-329.94950565,0.00020347,2]
[394782641,1763942836361,-163.99786798,0.00020399,2]
[394782642,1763942836380,-171.83902863,0.00021126,2]
[394782643,1763942842130,-223.4736,0.00013699,2]
[394782644,1763942842152,-242.16097137,0.00021126,2]
[394782645,1763942842174,-145.22979842,0.00021593,2]
[394782697,1763943032220,-199.87672008,0.0002178,10]
[394782699,1763943032229,-179.0,0.00022,2]
[394782701,1763943032238,-98.750068,0.00022,2]
[394782756,1763943038127,-326.93934112,0.00022,2]
[394782758,1763943038144,-664.31059088,0.00022,2]
[394782760,1763943038153,-150.0,0.00022474,2]
[394782762,1763943038165,-455.3637651,0.00022824,2]
[394782764,1763943038176,-882.1156609,0.00022824,2]
[394782767,1763943038189,-179.0,0.00023014,7]
[394782768,1763943038199,-900.0,0.00023356,2]
[394782771,1763943038209,-300.0,0.0002394,2]
[394782773,1763943038220,-300.0,0.0002394,2]
[394782774,1763943038229,-300.0,0.0002394,2]
[394782776,1763943038239,-300.0,0.0002394,2]
[394782778,1763943038248,-1200.0,0.0002394,2]
[394782780,1763943038257,-500.0,0.0002394,2]
[394782782,1763943038267,-500.0,0.0002394,2]
[394782783,1763943038276,-500.0,0.0002394,2]
[394782784,1763943038285,-500.0,0.0002394,2]
[394782785,1763943038294,-500.0,0.0002394,2]
[394782786,1763943038303,-500.0,0.0002394,2]
[394782787,1763943038311,-500.0,0.0002394,2]
[394782788,1763943038320,-500.0,0.0002394,2]
[394782789,1763943038330,-500.0,0.0002394,2]
[394782790,1763943038339,-500.0,0.0002394,2]
[394782791,1763943038348,-500.0,0.0002394,2]
[394782792,1763943038357,-500.0,0.0002394,2]
[394782793,1763943038366,-500.0,0.0002394,2]
[394782794,1763943038375,-500.0,0.0002394,2]
[394782795,1763943038385,-500.0,0.0002394,2]
[394782796,1763943038394,-500.0,0.0002394,2]
[394782797,1763943038403,-500.0,0.0002394,2]
[394782798,1763943038412,-500.0,0.0002394,2]
[394782799,1763943038421,-500.0,0.0002394,2]
[394782800,1763943038430,-350.0,0.0002394,2]
[394782801,1763943038440,-500.0,0.0002394,2]
[394782802,1763943038449,-500.0,0.0002394,2]
[394782803,1763943038459,-500.0,0.0002394,2]
[394782804,1763943038470,-1005.23066901,0.00023941,2]
[394782805,1763943038482,-194.76933099,0.00023941,2]
[394782806,1763943038491,-367.1866379,0.00023943,2]
[394782807,1763943038500,-1191.97033401,0.00024059,2]
[394782902,1763943040693,-861.62966599,0.00024059,2]